bitfinex/quotes_SOLUSD_20240725
["timestamp","ask_amount","ask_price","bid_price","bid_amount"]
[1721891827596,6.2667,170.95,170.8,20.30578611]
[1721891827597,6.2667,170.95,170.84,20.0]
[1721891827800,6.2667,170.95,170.84,20.30488529]
[1721891828893,6.2667,170.95,170.85,45.0]
[1721891829117,46.0395,170.98,170.86,20.30447414]
[1721891829708,46.0395,170.98,170.87,15.0673]
[1721891829709,29.57,170.98,170.87,15.0673]
[1721891830011,6.5088,170.99,170.88,0.30417218]
[1721891830193,29.57,171.04,170.89,20.0]
[1721891830400,29.57,171.04,170.91,20.0]
[1721891830611,29.57,171.04,170.92,0.30329845]
[1721891834405,29.57,171.04,170.93,16.1778]
[1721891834614,29.57,171.04,170.93,16.48073754]
[1721891835001,6.6324,171.05,170.93,36.48073754]
[1721891835221,6.3124,171.09,170.97,20.0]
[1721891835391,6.3124,171.09,170.98,0.30196953]
[1721891836293,7.77397503,171.09,170.97,20.0]
[1721891836494,7.77397503,171.09,170.95,20.30228731]
[1721891836725,13.61887503,171.09,170.96,20.0]
[1721891836902,13.61887503,171.09,170.94,26.39215281]
[1721891836903,29.57,171.07,170.94,26.0897]
[1721891837219,46.4619092,171.06,170.94,26.0897]
[1721891837704,46.46190749,171.06,170.94,26.0897]
[1721891837894,46.46190749,171.06,170.94,6.0897]
[1721891838096,45.0,171.06,170.94,6.0897]
[1721891839203,29.57,171.07,170.95,20.30286088]
[1721891839544,6.3124,171.09,170.97,20.0]
[1721891839696,6.3124,171.09,170.98,0.30208006]
[1721891840933,29.57,171.1,170.98,0.30208006]
[1721891841145,58.5435,171.13,170.99,35.7307]
[1721891841146,29.57,171.13,170.99,35.7307]
[1721891841312,29.57,171.13,171.0,0.30153191]
[1721891842233,29.57,171.13,171.0,45.30153191]
[1721891842409,29.57,171.13,171.02,20.0]
[1721891842610,29.57,171.13,171.02,20.30119925]
[1721891842911,6.485,171.14,171.02,26.53189925]
[1721891843135,6.485,171.14,171.03,45.0]
[1721891843339,6.485,171.14,171.04,0.30088954]
[1721891843542,440.5656,171.19,171.04,60.30088954]
[1721891843715,440.5656,171.19,171.05,16.89195215]
[1721891845753,20.0,171.18,171.06,20.0]
[1721891845918,35.9493,171.19,171.07,0.30033029]
[1721891846240,29.57,171.22,171.08,20.0]
[1721891846444,29.57,171.22,171.09,0.30000261]
[1721891847222,29.57,171.22,171.1,20.0]
[1721891847537,29.57,171.22,171.11,0.29959042]
[1721891847923,29.57,171.22,171.11,6.54979042]
[1721891848632,29.57,171.22,171.12,15.9383]
[1721891848829,29.57,171.22,171.13,0.29952684]
[1721891849340,29.57,171.22,171.12,15.9383]
[1721891849643,29.57,171.22,171.13,0.29951268]
[1721891849944,29.57,171.25,171.13,0.29951268]
[1721891850133,1.46051214,171.26,171.13,0.29951268]
[1721891850342,1.46032234,171.26,171.13,65.29951268]
[1721891851063,36.1745,171.27,171.15,20.0]
[1721891851359,36.1745,171.27,171.15,20.29869083]
[1721891851533,29.57,171.27,171.15,20.29869083]
[1721891851735,389.2,171.29,171.15,20.29869083]
[1721891852046,29.57,171.28,171.15,20.29869083]
[1721891852251,260.584,171.31,171.15,40.29869083]
[1721891852451,29.57,171.3,171.18,16.5231]
[1721891852621,29.57,171.3,171.18,16.82119763]
[1721891853218,1.45986517,171.29,171.18,16.5231]
[1721891853423,29.57,171.27,171.18,16.5231]
[1721891853655,1.46017045,171.26,171.18,16.5231]
[1721891854025,29.57,171.27,171.18,16.5231]
[1721891854528,1.46007618,171.26,171.18,16.5231]
[1721891854945,46.46007618,171.26,171.18,16.5231]
[1721891855442,45.0,171.26,171.18,16.5231]
[1721891856051,46.46012375,171.26,171.18,16.5231]
[1721891856353,29.57,171.27,171.18,16.5231]
[1721891856766,6.484,171.31,171.18,16.5231]
[1721891856926,7.94375918,171.31,171.19,0.2981129]
[1721891857264,7.94375918,171.31,171.18,16.82080814]
[1721891857427,7.94375918,171.31,171.18,16.5231]
[1721891857627,29.57,171.29,171.18,16.5231]
[1721891857828,1.45996772,171.28,171.18,16.5231]
[1721891858340,31.02996349,171.29,171.18,16.5231]
[1721891858728,29.57,171.29,171.18,16.5231]
[1721891858948,31.02996475,171.29,171.18,16.5231]
[1721891859268,29.57,171.29,171.18,16.5231]
[1721891859726,31.02996613,171.29,171.18,16.5231]
[1721891859923,45.0,171.28,171.18,16.5231]
[1721891860227,1.46010492,171.27,171.18,16.5231]
[1721891860433,1.46010453,171.26,171.18,16.5231]
[1721891860837,29.57,171.29,171.19,0.29853095]
[1721891861047,29.57,171.29,171.18,16.5231]
[1721891861954,29.57,171.29,171.18,36.5231]
[1721891862162,1.45983294,171.3,171.19,6.2502]
[1721891862460,1.45983294,171.3,171.19,26.2502]
[1721891862461,45.0,171.3,171.19,26.2502]
[1721891862666,6.484,171.31,171.19,26.2502]
[1721891863235,6.484,171.31,171.2,0.29773675]
[1721891864067,7.94372103,171.31,171.19,26.54781401]
[1721891864359,7.94372103,171.31,171.19,26.2502]
[1721891866271,7.94372103,171.31,171.19,6.2502]
[1721891866577,45.0,171.3,171.19,6.2502]
[1721891866976,1.45984978,171.29,171.19,6.2502]
[1721891867285,45.0,171.3,171.19,6.2502]
[1721891867567,46.45986521,171.3,171.19,6.2502]
[1721891868156,45.0,171.3,171.19,6.2502]
[1721891868465,1.45986589,171.29,171.19,6.2502]
[1721891868642,46.45986681,171.3,171.19,6.2502]
[1721891868848,31.02973418,171.32,171.19,26.2502]
[1721891870959,31.02973418,171.32,171.19,46.2502]
[1721891872344,29.57,171.32,171.19,46.2502]
[1721891872665,31.02971436,171.32,171.19,26.2502]
[1721891872885,45.0,171.31,171.19,6.2502]
[1721891873178,1.45981311,171.3,171.19,26.2502]
[1721891873878,45.0,171.31,171.19,26.2502]
[1721891874173,29.57,171.32,171.21,20.0]
[1721891874477,8.4996069,171.35,171.22,15.7441]
[1721891874773,31.8373069,171.35,171.23,20.0]
[1721891874974,30.3775918,171.35,171.24,0.29665857]
[1721891875280,1.45937188,171.34,171.23,65.0]
[1721891875776,1.45937188,171.34,171.23,20.0]
[1721891876448,46.45937188,171.34,171.22,15.7441]
[1721891878984,99.14937188,171.34,171.22,15.7441]
[1721891879355,82.26,171.32,171.22,15.7441]
[1721891879588,99.14993281,171.31,171.22,15.7441]
[1721891879886,82.26,171.29,171.18,16.039]
[1721891880191,66.46017946,171.28,171.18,16.039]
[1721891880690,66.46017946,171.28,171.18,36.039]
[1721891880980,66.46017946,171.28,171.18,16.039]
[1721891881662,119.14017946,171.28,171.18,16.039]
[1721891881971,29.57,171.26,171.18,16.039]
[1721891882163,46.46032794,171.25,171.18,16.039]
[1721891882366,29.57,171.23,171.18,16.039]
[1721891882572,31.03048896,171.23,171.18,16.039]
[1721891882880,45.0,171.22,171.18,16.039]
[1721891883178,1.46048908,171.21,171.14,6.09899394]
[1721891883374,21.46048908,171.21,171.13,15.1152]
[1721891883560,45.0,171.2,171.13,15.1152]
[1721891883760,46.46072841,171.2,171.13,15.1152]
[1721891886867,76.03072841,171.2,171.13,15.1152]
[1721891887072,128.71072841,171.2,171.09,22.20737826]
[1721891887279,128.71072841,171.2,171.09,16.1141]
[1721891887280,29.57,171.17,171.09,16.1141]
[1721891887481,46.46105512,171.16,171.09,16.1141]
[1721891889471,29.57,171.14,171.09,16.1141]
[1721891889792,21.46123243,171.13,171.03,15.2541]
[1721891889958,66.46123243,171.13,171.03,15.2541]
[1721891890158,119.14123243,171.13,171.02,6.10424499]
[1721891890413,82.25,171.11,170.98,15.4356]
[1721891890617,1.46177238,171.1,170.98,15.4356]
[1721891890818,66.46177238,171.1,170.98,15.4356]
[1721891891477,119.14177238,171.1,170.98,15.4356]
[1721891892404,29.57,171.08,170.98,15.4356]
[1721891892613,46.46182439,171.07,170.98,15.4356]
[1721891893315,20.0,171.06,170.98,15.4356]
[1721891893609,1.4619851,171.05,170.98,15.4356]
[1721891893811,1.4619851,171.05,170.96,6.10630514]
[1721891893812,1.4620043,171.04,170.96,6.10630514]
[1721891894314,21.4620043,171.04,170.96,6.10630514]
[1721891895286,6.4726,171.06,170.96,26.10630514]
[1721891895608,29.57,171.08,170.98,20.0]
[1721891895808,31.03173583,171.08,170.98,20.0]
[1721891895988,1.46173583,171.08,170.98,20.0]
[1721891896187,1.46173583,171.08,170.96,26.10630514]
[1721891896723,17.55,171.07,170.96,6.10630514]
[1721891896909,66.46202892,171.06,170.96,6.10630514]
[1721891898883,119.14202892,171.06,170.96,6.10630514]
[1721891899206,82.25,171.05,170.94,15.639]
[1721891899512,46.46229253,171.04,170.94,15.639]
[1721891899713,20.0,171.03,170.94,15.639]
[1721891899921,46.46228007,171.02,170.94,15.639]
[1721891900213,52.73938007,171.02,170.91,6.1927]
[1721891900418,20.0,171.01,170.9,22.10740731]
[1721891900619,46.46240461,171.0,170.9,22.10740731]
[1721891901994,49.57,170.99,170.9,6.10530731]
[1721891902196,49.57,170.99,170.85,35.3385]
[1721891902197,46.46261932,170.98,170.85,15.3385]
[1721891902427,46.46261932,170.98,170.87,6.10220998]
[1721891902428,20.0,170.97,170.87,6.10220998]
[1721891902718,46.46277895,170.96,170.85,15.3385]
[1721891902922,46.46277895,170.96,170.85,41.44107941]
[1721891903505,45.0,170.96,170.86,20.0]
[1721891903808,20.0,170.97,170.87,20.0]
[1721891904015,21.46258137,170.98,170.87,20.0]
[1721891904413,20.0,170.98,170.88,20.0]
[1721891904623,20.0,170.98,170.89,0.30431096]
[1721891904808,53.3971,171.02,170.88,20.0]
[1721891905010,20.0,171.01,170.89,0.30414635]
[1721891905215,45.0,171.0,170.89,0.30414635]
[1721891905417,20.0,170.99,170.89,0.30414635]
[1721891905603,20.0,170.99,170.88,20.0]
[1721891906001,20.0,170.99,170.89,20.30415045]
[1721891906223,1.46244562,170.98,170.87,20.0]
[1721891906399,1.46244562,170.98,170.86,49.57]
[1721891906718,45.0,170.98,170.86,49.87450705]
[1721891907527,46.46258885,170.98,170.86,49.57]
[1721891908031,46.46258885,170.98,170.86,49.87450795]
[1721891908214,45.0,170.98,170.88,20.0]
[1721891908398,20.0,170.99,170.89,20.0]
[1721891908817,21.46244525,171.01,170.88,20.0]
[1721891909024,46.46250746,171.0,170.88,20.0]
[1721891909323,20.0,170.99,170.87,40.0]
[1721891909511,20.0,170.99,170.87,40.30423002]
[1721891910008,20.0,170.99,170.89,40.0]
[1721891911029,45.0,171.0,170.89,40.0]
[1721891911328,35.8471,171.02,170.91,40.0]
[1721891911504,35.8471,171.02,170.92,0.30372259]
[1721891911704,35.8471,171.02,170.91,20.30372305]
[1721891912838,35.8471,171.02,170.9,20.0]
[1721891912839,1.46229902,171.01,170.88,20.0]
[1721891913124,1.46229902,171.01,170.88,20.30414694]
[1721891913332,37.30943237,171.02,170.91,20.0]
[1721891913534,35.8471,171.02,170.91,20.0]
[1721891913739,35.8471,171.02,170.93,20.0]
[1721891913903,35.8471,171.02,170.91,20.30349116]
[1721891914425,1.46215611,171.01,170.89,65.30345821]
[1721891914610,1.46215611,171.01,170.86,35.67134658]
[1721891914611,46.46215611,171.01,170.86,55.67134658]
[1721891914926,29.57,170.99,170.86,26.10134658]
[1721891915104,29.57,170.99,170.87,20.0]
[1721891915105,1.46256366,170.98,170.87,20.0]
[1721891915297,46.46256366,170.98,170.86,6.10134658]
[1721891916318,114.67006366,170.98,170.86,6.10134658]
[1721891916945,20.0,170.97,170.86,6.10134658]
[1721891917137,46.46278918,170.96,170.86,6.10134658]
[1721891917341,6.448,170.94,170.86,6.10134658]
[1721891917645,6.448,170.94,170.82,20.0]
[1721891917850,6.448,170.94,170.84,26.10311626]
[1721891918521,6.448,170.94,170.87,20.0]
[1721891919441,6.448,170.94,170.88,0.30454821]
[1721891919617,15.5275,170.98,170.9,20.0]
[1721891919813,6.2204,170.99,170.9,20.0]
[1721891920239,6.2204,170.99,170.89,20.0]
[1721891920240,1.46237287,170.98,170.89,20.0]
[1721891920447,6.2204,170.99,170.89,20.0]
[1721891920640,6.2204,170.99,170.91,20.0]
[1721891921020,16.5233,171.02,170.89,49.57]
[1721891921021,16.5233,171.02,170.93,20.0]
[1721891921233,6.0758,171.04,170.93,20.30340713]
[1721891922137,6.0758,171.04,170.98,20.0]
[1721891922435,35.9598,171.08,170.99,0.30251607]
[1721891922626,35.9598,171.08,170.97,0.30251607]
[1721891924964,6.3898,171.08,170.99,20.0]
[1721891925130,1.46162566,171.07,170.97,15.4434]
[1721891926644,46.46162566,171.07,170.97,15.4434]
[1721891927558,35.9598,171.08,170.99,20.0]
[1721891927766,6.3898,171.08,170.99,20.30204865]
[1721891928542,6.3898,171.08,170.99,20.0]
[1721891928750,6.3898,171.08,170.97,35.4434]
[1721891930870,1.46162815,171.07,170.97,15.4434]
[1721891931163,46.46162815,171.07,170.97,15.4434]
[1721891931742,6.3898,171.08,170.99,20.0]
[1721891932058,6.3898,171.08,170.99,20.30218951]
[1721891932252,6.3898,171.08,170.99,20.0]
[1721891934163,6.3898,171.08,170.99,40.30219086]
[1721891934567,6.3889,171.12,171.03,20.0]
[1721891934749,6.3889,171.12,171.03,20.30145078]
[1721891937180,6.3889,171.12,171.04,20.0]
[1721891937483,6.3889,171.12,171.05,0.30104335]
[1721891937657,6.5531,171.17,171.06,20.0]
[1721891937975,6.5531,171.17,171.07,0.30066172]
[1721891939675,6.5531,171.17,171.08,20.0]
[1721891939855,6.5531,171.17,171.08,20.30031782]
[1721891940977,6.5531,171.17,171.08,40.30031782]
[1721891941679,21.7282,171.23,171.12,20.0]
[1721891941853,21.7282,171.23,171.1,20.0]
[1721891942053,23.18873574,171.23,171.1,20.0]
[1721891942498,21.7282,171.23,171.12,20.0]
[1721891942694,21.7282,171.23,171.13,0.29949498]
[1721891943958,21.7282,171.23,171.13,20.29938611]
[1721891944162,6.5448,171.23,171.16,20.0]
[1721891944367,6.5448,171.23,171.16,20.29873273]
[1721891944565,52.6821,171.28,171.16,20.29873273]
[1721891946296,52.6821,171.28,171.19,20.0]
[1721891946593,52.6821,171.28,171.19,0.29810333]
[1721891946972,52.6821,171.28,171.18,20.0]
[1721891947284,6.5088,171.28,171.21,20.0]
[1721891947483,6.5088,171.28,171.21,20.29762526]
[1721891947671,29.57,171.31,171.21,35.64842526]
[1721891948578,1.45972582,171.3,171.21,15.3508]
[1721891948775,29.57,171.31,171.21,15.3508]
[1721891948980,1.45986935,171.3,171.21,15.3508]
[1721891949494,46.45986935,171.3,171.21,15.3508]
[1721891949873,45.0,171.3,171.21,15.3508]
[1721891950074,46.45987187,171.3,171.21,15.3508]
[1721891950275,1.45987325,171.29,171.17,20.0]
[1721891950470,45.0,171.3,171.17,20.29824577]
[1721891950674,45.0,171.3,171.19,20.0]
[1721891950992,29.57,171.28,171.16,15.6372]
[1721891951186,6.1287,171.26,171.16,15.6372]
[1721891951392,1.46012136,171.25,171.16,15.6372]
[1721891951899,6.1287,171.26,171.16,15.6372]
[1721891952270,6.1287,171.26,171.2,20.0]
[1721891952478,6.648,171.3,171.22,20.0]
[1721891952671,6.648,171.3,171.22,20.29727974]
[1721891952878,6.648,171.3,171.21,0.29728082]
[1721891953069,6.648,171.3,171.21,45.29728082]
[1721891953298,6.648,171.3,171.22,20.0]
[1721891953685,6.648,171.3,171.21,45.29728082]
[1721891954390,6.648,171.3,171.22,20.0]
[1721891955712,1.45958547,171.29,171.2,20.0]
[1721891956012,6.648,171.3,171.2,20.0]
[1721891956905,6.648,171.3,171.18,20.29770929]
[1721891957195,1.45976672,171.29,171.19,20.0]
[1721891957983,29.57,171.28,171.16,35.6372]
[1721891958183,1.46005654,171.27,171.16,35.6372]
[1721891958596,29.57,171.28,171.16,35.6372]
[1721891958785,46.46005623,171.27,171.16,35.6372]
[1721891958980,1.46012652,171.26,171.16,35.6372]
[1721891959599,45.0,171.27,171.16,55.6372]
[1721891959801,29.57,171.28,171.16,55.6372]
[1721891960399,29.57,171.28,171.17,0.29841988]
[1721891962311,1.46005705,171.27,171.16,15.6372]
[1721891962489,1.46005705,171.27,171.12,0.29842046]
[1721891962490,6.1147,171.25,171.12,35.5159]
[1721891962685,1.46037181,171.24,171.12,35.5159]
[1721891962879,1.46035586,171.23,171.12,35.5159]
[1721891963383,45.0,171.24,171.14,20.0]
[1721891963899,45.0,171.24,171.14,40.0]
[1721891964220,35.6847,171.25,171.16,20.0]
[1721891964404,6.1147,171.25,171.16,20.0]
[1721891964917,6.1147,171.25,171.16,20.29872294]
[1721891965202,6.1147,171.25,171.16,20.0]
[1721891965909,6.1147,171.25,171.17,20.0]
[1721891966783,6.1147,171.25,171.16,20.29842011]
[1721891966784,6.1584,171.29,171.21,20.0]
[1721891967300,6.1584,171.29,171.19,20.0]
[1721891968501,7.61821782,171.29,171.19,20.0]
[1721891968815,7.61821782,171.29,171.16,20.0]
[1721891969009,29.57,171.28,171.16,20.0]
[1721891969310,1.46005954,171.27,171.14,40.29803871]
[1721891969486,1.46005954,171.26,171.15,45.0]
[1721891969681,1.46005954,171.26,171.14,40.29803871]
[1721891970096,1.46005954,171.26,171.14,40.0]
[1721891970300,1.46005954,171.26,171.15,20.0]
[1721891970494,1.46005954,171.26,171.14,40.0]
[1721891970698,1.46005954,171.26,171.14,20.0]
[1721891971092,1.46005954,171.26,171.16,20.0]
[1721891971293,29.57,171.28,171.16,40.0]
[1721891973820,84.01005993,171.27,171.13,20.0]
[1721891974115,6.0369,171.25,171.14,20.0]
[1721891974293,6.0369,171.25,171.16,20.0]
[1721891974497,6.0369,171.25,171.16,40.0]
[1721891974927,6.0369,171.25,171.17,0.2984614]
[1721891975705,6.0369,171.25,171.16,40.29846601]
[1721891976790,6.0369,171.25,171.17,0.29842193]
[1721891978712,6.0369,171.25,171.16,40.29842935]
[1721891978989,6.0369,171.25,171.16,20.0]
[1721891979234,6.0369,171.25,171.16,20.29842943]
[1721891979607,6.0369,171.25,171.15,0.29847402]
[1721891979913,6.0369,171.25,171.15,65.29847402]
[1721891980101,6.0369,171.25,171.15,65.0]
[1721891980301,6.0369,171.25,171.16,20.0]
[1721891986028,6.0369,171.25,171.19,20.0]
[1721891987727,6.0369,171.25,171.18,20.0]
[1721891990039,6.0369,171.25,171.18,20.29824177]
[1721891991046,6.0369,171.25,171.2,20.0]
[1721891991217,6.0369,171.25,171.22,20.0]
[1721891991823,6.0369,171.25,171.2,20.0]
[1721891992024,6.0369,171.25,171.22,20.0]
[1721891992224,6.0369,171.25,171.23,14.75]
[1721891993048,14.75,171.28,171.23,14.75]
[1721891993740,22.2902,171.3,171.23,14.75]
[1721891993945,14.75,171.28,171.23,14.75]
[1721891994332,22.2902,171.3,171.22,20.0]
[1721891997446,22.2902,171.3,171.22,40.0]
[1721891997624,22.2902,171.3,171.24,20.0]
[1721891998333,22.2902,171.3,171.22,0.29708593]
[1721891998334,22.2902,171.3,171.22,20.0]
[1721891999256,22.2902,171.3,171.24,20.0]
[1721891999550,6.0192,171.3,171.26,20.0]
[1721892002142,21.9559,171.34,171.28,20.0]
[1721892005169,1.45919451,171.33,171.23,20.0]
[1721892005363,1.45919451,171.33,171.21,20.0]
[1721892005937,21.9559,171.34,171.21,20.0]
[1721892005938,6.2898,171.34,171.28,40.0]
[1721892006161,6.2898,171.34,171.29,0.29604858]
[1721892009757,6.2898,171.34,171.28,40.0]
[1721892010146,6.2898,171.34,171.3,20.0]
[1721892010740,0.8075918,171.35,171.33,20.0]
[1721892011066,0.8075918,171.35,171.34,20.0]
[1721892011456,0.8075918,171.35,171.33,20.0]
[1721892012179,15.89,171.46,171.38,20.0]
[1721892013040,15.89,171.46,171.36,20.0]
[1721892013472,17.34836239,171.46,171.34,20.0]
[1721892013685,37.20549132,171.45,171.32,20.0]
[1721892014045,45.0,171.44,171.32,20.0]
[1721892014250,1.45869266,171.43,171.32,20.0]
[1721892014456,1.45871931,171.42,171.32,20.0]
[1721892016144,14.73,171.39,171.34,14.73]
[1721892016344,14.73,171.37,171.32,14.73]
[1721892016946,6.1911,171.38,171.34,20.0]
[1721892017160,6.1911,171.38,171.34,34.73]
[1721892017756,20.9211,171.38,171.33,14.73]
[1721892018244,14.73,171.37,171.32,34.73]
[1721892018448,14.73,171.34,171.29,20.0]
[1721892018667,14.73,171.34,171.29,34.73]
[1721892019974,14.73,171.35,171.3,14.73]
[1721892020452,14.73,171.36,171.3,14.73]
[1721892020858,14.73,171.37,171.31,14.73]
[1721892021052,14.73,171.37,171.32,14.73]
[1721892021375,6.1911,171.38,171.34,14.73]
[1721892022975,6.1911,171.38,171.34,34.73]
[1721892023276,6.1911,171.38,171.35,14.73]
[1721892023458,6.1911,171.38,171.34,14.73]
[1721892023778,6.2775,171.46,171.36,14.73]
[1721892023977,14.73,171.41,171.36,14.73]
[1721892024757,14.73,171.41,171.35,14.73]
[1721892024961,14.73,171.4,171.35,14.73]
[1721892025177,14.73,171.4,171.34,14.73]
[1721892026057,76.47,171.45,171.34,14.73]
[1721892026259,76.47,171.45,171.35,14.73]
[1721892026473,58.92,171.45,171.35,14.73]
[1721892029377,14.73,171.38,171.33,34.73]
[1721892029557,1.45865054,171.44,171.35,14.73]
[1721892029756,14.73,171.44,171.38,14.73]
[1721892030986,6.2775,171.46,171.39,34.73]
[1721892031175,14.73,171.45,171.39,34.73]
[1721892031894,14.73,171.45,171.4,14.73]
[1721892033667,6.2775,171.46,171.4,14.73]
[1721892033875,14.73,171.45,171.39,34.73]
[1721892034769,6.2775,171.46,171.41,14.73]
[1721892034973,6.2775,171.46,171.42,14.73]
[1721892036676,21.0075,171.46,171.41,34.73]
[1721892037567,21.0075,171.46,171.41,20.0]
[1721892037873,14.73,171.43,171.38,20.0]
[1721892038270,14.73,171.41,171.35,20.0]
[1721892038470,14.73,171.38,171.33,26.82146638]
[1721892038687,14.73,171.38,171.33,34.73]
[1721892038894,7.73621914,171.46,171.35,20.0]
[1721892039196,14.73,171.43,171.39,20.0]
[1721892039391,14.73,171.43,171.38,14.73]
[1721892039602,14.73,171.43,171.37,14.73]
[1721892039781,14.73,171.41,171.36,20.0]
[1721892040898,14.73,171.41,171.35,14.73]
[1721892041302,14.73,171.4,171.34,20.0]
[1721892041471,14.73,171.38,171.33,14.73]
[1721892041874,14.73,171.4,171.35,34.73]
[1721892042321,1.45857952,171.45,171.37,14.73]
[1721892042491,14.73,171.44,171.38,14.73]
[1721892043003,14.73,171.45,171.4,14.73]
[1721892043206,21.0075,171.46,171.4,14.73]
[1721892043588,14.73,171.45,171.4,14.73]
[1721892044402,14.73,171.45,171.39,34.73]
[1721892044907,14.73,171.44,171.38,14.73]
[1721892045211,6.2775,171.46,171.38,14.73]
[1721892045212,14.73,171.43,171.38,14.73]
[1721892045408,14.73,171.43,171.37,34.73]
[1721892046005,7.73575887,171.46,171.37,34.73]
[1721892046006,14.73,171.42,171.37,34.73]
[1721892046209,1.45841585,171.45,171.35,20.0]
[1721892046393,1.45841585,171.45,171.33,20.0]
[1721892046898,46.45841585,171.45,171.33,20.0]
[1721892047225,45.0,171.45,171.35,20.0]
[1721892047520,6.2775,171.46,171.35,20.0]
[1721892051124,6.2775,171.46,171.37,20.0]
[1721892051729,6.2775,171.46,171.39,20.0]
[1721892052523,0.8075918,171.52,171.43,20.0]
[1721892053522,0.8075918,171.52,171.44,45.0]
[1721892053695,0.8075918,171.52,171.45,20.0]
[1721892059521,0.8075918,171.52,171.49,20.0]
[1721892059919,0.8075918,171.52,171.46,0.29214755]
[1721892059920,0.8075918,171.52,171.46,20.29214755]
[1721892060139,0.8075918,171.52,171.46,20.0]
[1721892060526,0.8075918,171.52,171.43,20.0]
[1721892060825,0.8075918,171.52,171.44,20.0]
[1721892061117,0.8075918,171.52,171.45,20.0]
[1721892062118,0.8075918,171.52,171.44,20.0]
[1721892062356,0.8075918,171.52,171.47,20.0]
[1721892062916,0.8075918,171.52,171.49,20.0]
[1721892063099,0.8075918,171.52,171.5,0.29213076]
[1721892063608,0.8075918,171.52,171.49,20.0]
[1721892063812,0.8075918,171.52,171.51,20.0]
[1721892064021,0.8075918,171.52,171.49,20.0]
[1721892064410,0.8075918,171.52,171.47,20.0]
[1721892064740,0.8075918,171.52,171.49,20.0]
[1721892066330,0.8075918,171.52,171.51,14.7]
[1721892066499,0.8075918,171.52,171.51,79.7]
[1721892067224,260.3398,171.62,171.55,20.0]
[1721892067397,403.9,171.61,171.56,14.7]
[1721892067922,14.7,171.6,171.55,14.7]
[1721892068107,14.7,171.6,171.55,34.7]
[1721892068428,389.2,171.61,171.53,40.0]
[1721892068631,389.2,171.61,171.55,20.0]
[1721892068928,389.2,171.61,171.57,20.0]
[1721892069625,389.2,171.61,171.55,20.0]
[1721892070303,389.2,171.61,171.57,20.0]
[1721892071605,6.2398,171.62,171.54,20.0]
[1721892071606,389.2,171.6,171.55,20.0]
[1721892071910,389.2,171.6,171.58,20.0]
[1721892072713,389.2,171.6,171.56,20.0]
[1721892073528,389.2,171.6,171.58,20.0]
[1721892074414,389.2,171.6,171.56,20.0]
[1721892074617,389.2,171.6,171.54,20.0]
[1721892074820,389.2,171.6,171.52,20.0]
[1721892075422,389.2,171.6,171.5,20.0]
[1721892075621,15.9315,171.58,171.49,7.17203305]
[1721892075820,15.9315,171.58,171.51,20.0]
[1721892076210,15.9315,171.58,171.54,20.0]
[1721892076529,389.2,171.6,171.54,20.0]
[1721892077040,389.2,171.6,171.56,20.0]
[1721892077625,389.2,171.61,171.56,20.0]
[1721892077824,389.2,171.61,171.53,20.0]
[1721892078327,389.2,171.61,171.56,20.0]
[1721892078532,389.2,171.61,171.54,20.0]